bitfinex-derivatives/quotes_BTCF0:USTF0_20250806
["timestamp","ask_amount","ask_price","bid_price","bid_amount"]
[1754489207209,0.4397119,114450.0,114440.0,2.23543434]
[1754489207406,0.21906,114450.0,114440.0,2.59623434]
[1754489207611,0.527081,114460.0,114450.0,0.20846]
[1754489207802,0.4833944,114460.0,114450.0,0.3832119]
[1754489208213,0.4833944,114460.0,114450.0,1.0080119]
[1754489208415,0.1747492,114460.0,114450.0,1.0080119]
[1754489208607,0.7578069,114470.0,114450.0,1.45975114]
[1754489208907,1.29281837,114470.0,114460.0,0.20846]
[1754489209108,0.2946266,114460.0,114450.0,0.21202674]
[1754489209309,0.4396966,114460.0,114450.0,1.01157864]
[1754489209811,0.1747366,114460.0,114450.0,1.09895054]
[1754489210203,0.3657066,114460.0,114450.0,1.09895054]
[1754489210412,0.4396966,114460.0,114450.0,1.01157864]
[1754489211210,0.8004966,114460.0,114450.0,1.01157864]
[1754489211411,0.4396966,114460.0,114450.0,1.37237864]
[1754489212309,0.93201727,114470.0,114460.0,0.1747366]
[1754489212511,0.93201727,114470.0,114460.0,0.20846]
[1754489212699,0.9315406,114470.0,114460.0,0.3831966]
[1754489212903,0.93201727,114470.0,114460.0,0.3831966]
[1754489213210,0.93201727,114470.0,114460.0,0.20846]
[1754489213409,0.93301727,114470.0,114460.0,0.3831966]
[1754489213602,1.29581727,114470.0,114460.0,0.20846]
[1754489213805,0.93501727,114470.0,114460.0,0.20846]
[1754489214010,0.93501727,114470.0,114460.0,0.3831966]
[1754489214409,0.003,114470.0,114460.0,0.7439966]
[1754489215115,0.003,114470.0,114460.0,1.10527327]
[1754489215413,0.003,114470.0,114460.0,1.40527327]
[1754489215805,0.003,114470.0,114460.0,1.58000127]
[1754489216114,0.539647,114500.0,114490.0,0.1746908]
[1754489216414,0.5833162,114500.0,114490.0,1.0079108]
[1754489216607,0.5833162,114500.0,114490.0,1.3687108]
[1754489216909,0.1,114500.0,114490.0,1.3687108]
[1754489217615,0.105,114500.0,114490.0,1.3687108]
[1754489219416,0.108,114500.0,114490.0,1.3687108]
[1754489219807,0.108,114500.0,114490.0,1.72998747]
[1754489221018,0.108,114500.0,114490.0,1.81732752]
[1754489221216,0.02105,114500.0,114490.0,1.81732752]
[1754489221413,4e-05,114510.0,114500.0,0.3303856]
[1754489221711,0.3300564,114540.0,114520.0,0.0436612]
[1754489221902,0.3300564,114540.0,114530.0,0.4727052]
[1754489221903,0.83789307,114540.0,114530.0,0.4727052]
[1754489222109,1.19869307,114540.0,114530.0,0.4727052]
[1754489222412,0.4803706,114540.0,114530.0,0.4727052]
[1754489222611,0.4367161,114540.0,114530.0,0.4727052]
[1754489222810,0.79799277,114540.0,114530.0,0.4727052]
[1754489223319,0.4417161,114540.0,114530.0,0.4727052]
[1754489223507,0.80299277,114540.0,114530.0,0.4727052]
[1754489223712,0.2220398,114530.0,114520.0,0.5791052]
[1754489223909,0.2220398,114530.0,114520.0,1.2072316]
[1754489224109,0.3685998,114530.0,114520.0,1.1635705]
[1754489224409,0.4367298,114530.0,114520.0,1.1635715]
[1754489224614,0.04741,114530.0,114520.0,1.1635715]
[1754489224818,0.2220399,114530.0,114520.0,1.1635715]
[1754489225117,0.04841,114530.0,114520.0,1.1635715]
[1754489225314,0.2230399,114530.0,114520.0,1.1635715]
[1754489225519,0.2230399,114530.0,114520.0,0.3643664]
[1754489225718,0.79900657,114530.0,114520.0,0.6290864]
[1754489225919,0.79900657,114530.0,114520.0,0.62552]
[1754489226510,0.79900657,114530.0,114520.0,0.62909392]
[1754489226711,0.79900657,114530.0,114520.0,0.80373902]
[1754489226911,0.4377299,114530.0,114520.0,0.80373902]
[1754489227312,0.001,114530.0,114520.0,2.00044769]
[1754489227815,0.001,114530.0,114520.0,0.54001902]
[1754489228023,0.2230398,114530.0,114520.0,1.16445902]
[1754489228318,0.4377298,114530.0,114520.0,1.16441902]
[1754489228523,0.4377298,114530.0,114520.0,0.80361902]
[1754489228814,1.15980647,114530.0,114520.0,0.6254]
[1754489229013,1.15980647,114530.0,114520.0,0.001]
[1754489229217,1.15980647,114530.0,114520.0,0.62536]
[1754489229408,1.15980647,114530.0,114520.0,0.1756451]
[1754489229809,0.4377299,114530.0,114520.0,0.18014892]
[1754489230006,0.4377299,114530.0,114520.0,0.1756451]
[1754489230215,0.2631,114530.0,114520.0,0.1756451]
[1754489230413,0.19497,114530.0,114520.0,0.5364451]
[1754489230721,0.4377298,114530.0,114520.0,0.1756451]
[1754489231220,0.4377298,114530.0,114520.0,0.18026493]
[1754489231421,0.04841,114530.0,114520.0,0.54106493]
[1754489233621,0.19497,114530.0,114520.0,0.54106493]
[1754489234417,0.43773,114530.0,114520.0,0.54106493]
[1754489234818,0.2631,114530.0,114520.0,0.54106493]
[1754489235215,0.4377299,114530.0,114520.0,0.00561983]
[1754489235421,1.15980657,114530.0,114520.0,0.62524]
[1754489235625,1.15980657,114530.0,114520.0,0.001]
[1754489237330,0.4367453,114520.0,114510.0,0.64363236]
[1754489237524,1.15882197,114520.0,114510.0,0.01943236]
[1754489237830,0.7975453,114520.0,114510.0,0.19409286]
[1754489238018,0.2621,114520.0,114510.0,0.81929286]
[1754489238215,0.2621,114520.0,114510.0,1.18009286]
[1754489238423,1.15882197,114520.0,114510.0,0.64359236]
[1754489238628,1.15982197,114520.0,114510.0,0.64359236]
[1754489239013,1.15982197,114520.0,114510.0,0.01943236]
[1754489239220,1.15982197,114520.0,114490.0,0.64304587]
[1754489239221,0.4367758,114500.0,114490.0,0.28224587]
[1754489239425,1.15885247,114500.0,114490.0,0.81806047]
[1754489239724,1.15885247,114500.0,114490.0,0.82274509]
[1754489239921,1.15885247,114500.0,114490.0,0.64337627]
[1754489240121,1.15885247,114500.0,114490.0,0.81806727]
[1754489240326,1.15885247,114500.0,114490.0,0.19390727]
[1754489240536,1.15885247,114500.0,114490.0,0.81810727]
[1754489240924,1.15885247,114500.0,114490.0,0.82010727]
[1754489241127,1.15885247,114500.0,114490.0,0.82110727]
[1754489241329,1.15885247,114500.0,114490.0,0.64641627]
[1754489241530,1.15885247,114500.0,114490.0,0.02221627]
[1754489241730,1.15885247,114500.0,114490.0,0.64641627]
[1754489241927,1.15885247,114500.0,114490.0,0.82110727]
[1754489242130,1.15885247,114500.0,114490.0,0.82106727]
[1754489242630,0.04741,114500.0,114490.0,1.54414394]
[1754489242934,0.04741,114510.0,114500.0,0.2630086]
[1754489243330,0.19397,114520.0,114510.0,0.1746604]
[1754489243527,0.19397,114520.0,114510.0,1.1606604]
[1754489243528,0.04741,114520.0,114510.0,1.1606604]
[1754489243932,0.8411814,114540.0,114530.0,0.1756299]
[1754489244135,0.8411814,114540.0,114530.0,0.81919893]
[1754489244632,1.20245807,114540.0,114530.0,0.64356903]
[1754489245022,0.8441814,114540.0,114530.0,0.81919893]
[1754489245423,1.20845807,114540.0,114530.0,0.81919893]
[1754489245632,0.8471814,114540.0,114530.0,0.64456903]
[1754489245935,1.20845807,114540.0,114530.0,0.81919893]
[1754489247133,0.8471814,114540.0,114530.0,0.81919893]
[1754489247429,1.20845807,114540.0,114530.0,0.81819893]
[1754489247634,1.20845807,114540.0,114530.0,0.64356903]
[1754489248227,1.20845807,114540.0,114530.0,0.01936903]
[1754489248437,1.20845807,114540.0,114520.0,0.62492]
[1754489248438,0.1746299,114530.0,114520.0,0.62492]
[1754489248736,0.1746299,114530.0,114500.0,0.55872263]
[1754489248737,0.3893504,114510.0,114500.0,0.46092053]
[1754489249031,0.3893504,114510.0,114500.0,1.17651053]
[1754489249032,0.4367604,114510.0,114500.0,1.17651053]
[1754489249236,0.4367604,114510.0,114500.0,1.0222565]
[1754489249839,0.79803707,114510.0,114500.0,0.8432493]
[1754489250341,0.04741,114510.0,114500.0,0.9352293]
[1754489250538,0.04741,114510.0,114500.0,0.9350693]
[1754489250935,0.04741,114510.0,114500.0,1.2958693]
[1754489251342,0.4486004,114510.0,114500.0,1.2958693]
[1754489252342,0.04741,114510.0,114500.0,1.2958693]
[1754489252544,0.04741,114510.0,114500.0,0.9350693]
[1754489252744,0.20159,114510.0,114500.0,0.9350693]
[1754489252942,0.04741,114510.0,114500.0,1.2958693]
[1754489253143,0.20296,114520.0,114510.0,0.3056497]
[1754489253341,0.4499551,114520.0,114510.0,0.2619848]
[1754489253539,0.4499704,114510.0,114500.0,0.2619975]
[1754489253734,0.81124707,114510.0,114500.0,0.71654]
[1754489253944,0.81124707,114510.0,114500.0,0.09198]
[1754489254139,0.81124707,114510.0,114500.0,0.7167]
[1754489254341,0.81124707,114510.0,114500.0,0.8913755]
[1754489254739,0.4499704,114510.0,114500.0,0.8913755]
[1754489254949,0.4499704,114510.0,114500.0,0.7167]
[1754489255439,0.81124707,114510.0,114500.0,0.62472]
[1754489255648,1.17204707,114510.0,114500.0,0.78003701]
[1754489256048,1.17204707,114510.0,114500.0,0.15531701]
[1754489256446,0.1746755,114500.0,114490.0,0.81826707]
[1754489256648,0.81126217,114500.0,114490.0,0.91024707]
[1754489256949,1.17206217,114500.0,114490.0,0.91024707]
[1754489257253,1.17206217,114500.0,114490.0,0.91024697]
[1754489257452,0.8107855,114500.0,114490.0,0.91024697]
[1754489258056,0.8107855,114500.0,114490.0,0.91124697]
[1754489258257,0.8107855,114500.0,114490.0,0.91324697]
[1754489258757,1.17206217,114500.0,114490.0,0.73835627]
[1754489258951,1.17206217,114500.0,114490.0,0.64637627]
[1754489259455,1.17206217,114500.0,114490.0,0.82106697]
[1754489259647,1.17206217,114500.0,114490.0,0.97646148]
[1754489259846,0.8107855,114500.0,114490.0,0.97646148]
[1754489260152,1.17206217,114500.0,114490.0,0.97646148]
[1754489260348,1.17206217,114500.0,114490.0,0.35230148]
[1754489260560,1.17206217,114500.0,114490.0,0.97646148]
[1754489260850,1.17206217,114500.0,114490.0,0.80177078]
[1754489261256,1.17206217,114500.0,114490.0,0.97646148]
[1754489261459,0.8107855,114500.0,114490.0,0.97646148]
[1754489261648,0.81126217,114500.0,114490.0,1.06844148]
[1754489261850,0.4499855,114500.0,114490.0,1.06844148]
[1754489262852,0.2234555,114500.0,114490.0,1.06844148]
[1754489263155,0.4499855,114500.0,114490.0,1.06844148]
[1754489263451,0.9417536,114520.0,114510.0,0.1746602]
[1754489263651,0.9417536,114520.0,114510.0,0.8908002]
[1754489264550,0.898089,114520.0,114510.0,0.8908002]
[1754489264956,0.8554258,114520.0,114510.0,0.8908002]
[1754489265344,0.2244344,114520.0,114510.0,0.8908002]
[1754489265650,0.4509549,114520.0,114510.0,0.7988202]
[1754489265859,0.4519549,114520.0,114510.0,0.7988202]
[1754489266155,0.81323157,114520.0,114510.0,0.8908002]
[1754489266754,0.99221157,114520.0,114510.0,0.8908002]
[1754489267156,1.35301157,114520.0,114510.0,0.8908002]
[1754489267653,1.35301157,114520.0,114510.0,0.71614]
[1754489267954,1.35301157,114520.0,114510.0,0.9887302]
[1754489268353,1.35301157,114520.0,114510.0,0.81407]
[1754489268558,1.35301157,114520.0,114510.0,0.8908002]
[1754489269046,1.35301157,114520.0,114510.0,0.71614]
[1754489269248,0.6289502,114510.0,114500.0,0.78879061]
[1754489269448,0.99022687,114510.0,114500.0,1.40704061]
[1754489270258,0.6289502,114510.0,114500.0,1.40704061]
[1754489270553,0.6289502,114510.0,114500.0,1.23237451]
[1754489270751,0.6289502,114510.0,114500.0,1.14417991]
[1754489270961,0.4024202,114510.0,114500.0,0.9887854]
[1754489271759,0.6289502,114510.0,114500.0,0.9887854]
[1754489272060,0.6289502,114510.0,114500.0,0.81411]
[1754489272261,0.6289502,114510.0,114500.0,0.9887855]
[1754489272954,0.6289502,114510.0,114500.0,0.81411]
[1754489273154,0.99022687,114510.0,114500.0,0.81411]
[1754489273357,0.99022687,114510.0,114490.0,0.64203907]
[1754489273358,0.6289655,114500.0,114490.0,0.11119627]
[1754489273557,1.35104217,114500.0,114490.0,0.64337627]
[1754489273762,1.35104217,114500.0,114490.0,0.73535627]
[1754489274161,0.9897655,114500.0,114490.0,1.21045699]
[1754489274460,0.2234555,114500.0,114490.0,1.57325699]
[1754489274664,0.04878,114500.0,114490.0,1.57325699]
[1754489274963,0.9777888,114510.0,114500.0,0.3645855]
[1754489275167,0.9777888,114510.0,114500.0,0.51999265]
[1754489275662,0.3031102,114510.0,114500.0,0.51999265]
[1754489276157,0.04878,114510.0,114500.0,0.88079265]
[1754489276558,0.15418,114520.0,114500.0,1.06739382]
[1754489276756,0.849269,114540.0,114530.0,0.1746297]
[1754489276954,0.4448129,114540.0,114530.0,1.2515697]
[1754489277162,0.4935929,114540.0,114530.0,1.2515697]
[1754489277461,0.4935929,114540.0,114530.0,1.04617685]
[1754489279164,1.03784957,114540.0,114530.0,1.04617685]
[1754489279665,1.04084957,114540.0,114530.0,1.04617685]
[1754489279866,0.6795729,114540.0,114530.0,1.04617685]
[1754489280260,0.6795729,114540.0,114530.0,0.96947715]
[1754489280261,1.0403729,114540.0,114530.0,0.96947715]
[1754489280467,1.0403729,114540.0,114530.0,0.87154715]
[1754489280668,0.6765729,114540.0,114530.0,0.9846797]
[1754489281258,1.0373729,114540.0,114530.0,0.81005]
[1754489281460,1.39464957,114540.0,114530.0,0.78535504]
[1754489281866,1.39464957,114540.0,114530.0,0.95998464]
[1754489282262,1.39464957,114540.0,114530.0,0.78535504]
[1754489282568,1.39464957,114540.0,114530.0,0.69337504]
[1754489282767,1.03384957,114540.0,114530.0,0.86800084]
[1754489283069,1.03384957,114540.0,114530.0,0.95464084]
[1754489283268,1.03384957,114540.0,114530.0,0.95464044]
[1754489283667,1.39464957,114540.0,114530.0,0.95464044]
[1754489283864,1.39464957,114540.0,114530.0,0.06921504]
[1754489284068,0.3078654,114530.0,114520.0,0.17473745]
[1754489284371,0.97673207,114530.0,114520.0,0.97445815]
[1754489284566,0.97673207,114530.0,114520.0,1.15500815]
[1754489284864,0.2239454,114530.0,114520.0,1.360601]
[1754489285072,0.87526207,114530.0,114520.0,1.360601]
[1754489285265,0.97673207,114530.0,114520.0,1.362601]
[1754489285465,0.97673207,114530.0,114520.0,1.001801]
[1754489285668,0.97673207,114530.0,114520.0,1.15699575]
[1754489286064,0.97673207,114530.0,114520.0,0.35707505]
[1754489286270,1.33753207,114530.0,114520.0,0.80192505]
[1754489286473,1.33753207,114530.0,114520.0,0.80193279]
[1754489286964,1.33753207,114530.0,114520.0,0.15720249]
[1754489287266,0.1746448,114520.0,114510.0,0.20248002]
[1754489287462,1.96207147,114520.0,114510.0,0.20248002]
[1754489287765,0.4363101,114510.0,114500.0,0.62532]
[1754489287970,0.7971101,114510.0,114500.0,0.62532]
[1754489288264,1.15838677,114510.0,114500.0,0.62532]
[1754489288465,1.15838677,114510.0,114500.0,0.9936054]
[1754489288466,0.7971101,114510.0,114500.0,0.9936054]
[1754489288775,1.15838677,114510.0,114500.0,1.0417254]
[1754489288962,1.15838677,114510.0,114500.0,0.9936054]
[1754489289268,1.15838677,114510.0,114500.0,1.0417254]
[1754489289269,0.4353101,114510.0,114500.0,1.0417254]
[1754489289572,0.3674201,114510.0,114500.0,1.0417254]
[1754489289767,0.584765,114520.0,114510.0,0.4600521]
[1754489289974,0.797095,114520.0,114510.0,0.4600521]
[1754489290172,0.797095,114520.0,114510.0,0.2935003]
[1754489290173,1.15837167,114520.0,114510.0,0.2935003]
[1754489290375,0.797095,114520.0,114510.0,0.2935003]
[1754489290576,0.79757167,114520.0,114510.0,0.2935003]
[1754489291067,0.79757167,114520.0,114510.0,0.3682703]
[1754489292872,0.79757167,114520.0,114510.0,0.3692703]
[1754489293172,0.4362951,114520.0,114510.0,0.4173903]
[1754489293367,0.4362951,114520.0,114510.0,0.7781903]
[1754489293566,0.5236086,114530.0,114520.0,0.1746451]
[1754489293770,0.88488527,114530.0,114520.0,1.0425751]
[1754489293964,0.88488527,114530.0,114520.0,0.81981]
[1754489294165,0.88488527,114530.0,114520.0,0.9944551]
[1754489294365,0.88488527,114530.0,114520.0,1.19781586]
[1754489294571,0.84122457,114530.0,114520.0,1.19781586]
[1754489294878,0.4799479,114530.0,114520.0,1.19781586]
[1754489295678,0.84122457,114530.0,114520.0,0.57161586]
[1754489295877,0.84122457,114530.0,114520.0,1.19901586]
[1754489296277,0.4362885,114530.0,114520.0,1.19901586]
[1754489296782,0.6154685,114530.0,114520.0,1.0437751]
[1754489297974,0.6154685,114530.0,114520.0,1.0722851]
[1754489298571,0.6154685,114530.0,114520.0,0.001]
[1754489298878,1.33754517,114530.0,114520.0,0.8021651]
[1754489299176,1.33754517,114530.0,114520.0,0.78276076]
[1754489299379,1.33754517,114530.0,114520.0,0.95740586]
[1754489299565,0.9762685,114530.0,114520.0,0.95740586]
[1754489299769,1.33754517,114530.0,114520.0,0.78176076]
[1754489300282,1.33754517,114530.0,114520.0,0.95640586]
[1754489300781,1.33754517,114530.0,114520.0,0.78176076]
[1754489301078,1.33754517,114530.0,114520.0,0.95640586]
[1754489301278,0.9762685,114530.0,114520.0,0.95640586]
[1754489301576,1.33754517,114530.0,114520.0,0.90060076]
[1754489301879,1.33754517,114530.0,114520.0,0.78176076]
[1754489302281,1.33754517,114530.0,114520.0,0.95640586]
[1754489302476,1.33754517,114530.0,114520.0,1.07524586]
[1754489302976,1.33754517,114530.0,114520.0,0.95640586]
[1754489303177,1.33754517,114530.0,114520.0,1.1653151]
[1754489303373,1.33754517,114530.0,114520.0,0.8011651]
[1754489303577,1.33754517,114530.0,114520.0,0.62652]
[1754489303781,1.33754517,114530.0,114520.0,0.9200051]
[1754489304180,1.33754517,114530.0,114520.0,0.9947751]
[1754489304381,1.33754517,114530.0,114520.0,1.0714051]
[1754489304583,1.33754517,114530.0,114520.0,0.89676]
[1754489304776,1.33754517,114530.0,114520.0,1.05200076]
[1754489305174,1.33754517,114530.0,114520.0,1.22664596]
[1754489305582,1.33754517,114530.0,114520.0,1.0714052]
[1754489305783,1.33754517,114530.0,114520.0,0.89676]
[1754489305986,1.33754517,114530.0,114520.0,1.0714051]
[1754489306484,1.33754517,114530.0,114520.0,1.27476586]
[1754489306680,1.33754517,114530.0,114520.0,1.05200076]
[1754489306885,1.33754517,114530.0,114520.0,1.22664586]
[1754489307484,0.9762685,114530.0,114520.0,1.22664586]
[1754489307687,0.2239585,114530.0,114520.0,1.63556586]
[1754489307888,0.97674517,114530.0,114520.0,1.63556586]
[1754489308180,0.9083785,114530.0,114520.0,0.51939076]
[1754489308384,0.97674517,114530.0,114520.0,1.14399076]
[1754489308687,0.97674517,114530.0,114520.0,0.51939076]
[1754489308985,0.97674517,114530.0,114520.0,0.69403586]
[1754489309385,0.97674517,114530.0,114520.0,1.14383076]
[1754489309584,0.97674517,114530.0,114520.0,0.51939076]
[1754489309774,0.97674517,114530.0,114520.0,1.31847586]
[1754489309979,0.97674517,114530.0,114520.0,1.36725586]
[1754489310187,0.6154685,114530.0,114520.0,1.36725586]
[1754489310487,0.6154685,114530.0,114520.0,1.36717586]
[1754489311186,0.6154685,114530.0,114520.0,1.36713586]
[1754489311388,0.5475698,114530.0,114520.0,1.36713586]
[1754489311584,0.5475698,114530.0,114520.0,1.72793586]
[1754489312090,0.4031298,114530.0,114520.0,1.72793586]
[1754489312482,0.2239498,114530.0,114520.0,1.72793586]
[1754489312877,0.6017598,114530.0,114520.0,1.2118951]
[1754489313084,0.96303647,114530.0,114520.0,1.211895]
[1754489313991,0.6017598,114530.0,114520.0,1.03725]
[1754489314384,0.6017598,114530.0,114520.0,0.98947]
[1754489314591,0.96303647,114530.0,114520.0,0.98947]
[1754489314795,0.6017598,114530.0,114520.0,1.212895]
[1754489315092,0.6017598,114530.0,114520.0,1.573695]
[1754489315289,0.6017598,114530.0,114520.0,0.41293]
[1754489315490,0.602195,114520.0,114510.0,0.51864635]
[1754489315794,1.32427167,114520.0,114510.0,1.14460635]
[1754489315994,1.32427167,114520.0,114510.0,0.91471]
[1754489316190,1.32427167,114520.0,114510.0,0.9892]
[1754489316398,1.32427167,114520.0,114510.0,1.1638603]
[1754489316702,0.962995,114520.0,114510.0,0.42301593]
[1754489316890,1.32427167,114520.0,114510.0,1.04905593]
[1754489317191,1.32427167,114520.0,114510.0,0.15543593]
[1754489317400,1.32427167,114520.0,114510.0,0.62584]
[1754489317787,1.32427167,114520.0,114510.0,0.62684]
[1754489317992,1.32427167,114520.0,114510.0,1.19302032]
[1754489318191,0.96347167,114520.0,114510.0,1.19302032]
[1754489318389,0.602195,114520.0,114510.0,1.24080032]
[1754489318697,1.45524997,114530.0,114520.0,0.41202]
[1754489318896,1.45524997,114530.0,114510.0,1.34720324]
[1754489318897,0.602195,114520.0,114510.0,1.34720324]
[1754489319096,0.603195,114520.0,114510.0,0.80823814]
[1754489319295,0.96447167,114520.0,114510.0,1.38505814]
[1754489319602,0.96347167,114520.0,114510.0,1.43383814]
[1754489319801,0.04974,114520.0,114510.0,1.43383814]
[1754489320002,0.04974,114520.0,114510.0,1.79463814]
[1754489320401,0.96347167,114520.0,114510.0,1.43379814]
[1754489320597,0.96347167,114520.0,114510.0,1.25914984]
[1754489320793,0.96347167,114520.0,114510.0,1.41478448]
[1754489320996,0.962995,114520.0,114510.0,1.58944478]
[1754489321496,0.962995,114520.0,114510.0,1.54066478]
[1754489321689,0.96347167,114520.0,114510.0,1.33818476]
[1754489322001,1.32427167,114520.0,114510.0,1.38696476]
[1754489322201,0.962995,114520.0,114510.0,1.21230446]
[1754489322602,1.32427167,114520.0,114510.0,0.91407446]
[1754489322802,1.32427167,114520.0,114510.0,0.91399446]
[1754489323703,1.32527167,114520.0,114510.0,0.91399446]
[1754489323901,0.03096,114510.0,114490.0,0.70518087]
[1754489324206,0.96350217,114500.0,114490.0,0.91793437]
[1754489324400,0.6022255,114500.0,114490.0,1.84024055]
[1754489324704,0.6022255,114500.0,114490.0,1.99586857]
[1754489325300,0.3008055,114500.0,114490.0,1.99586857]
[1754489325501,0.3008055,114500.0,114490.0,1.99886857]
[1754489325804,0.2244155,114500.0,114490.0,1.99886857]
[1754489326103,0.5116355,114500.0,114490.0,1.99886857]
[1754489326303,0.6022255,114500.0,114490.0,1.99886857]
[1754489326505,0.6022255,114500.0,114490.0,1.74966239]
[1754489326704,0.5326055,114500.0,114490.0,1.74966239]
[1754489327105,0.5326055,114500.0,114490.0,1.59403437]
[1754489328003,0.6199393,114510.0,114500.0,0.5866956]
[1754489328196,0.6895593,114510.0,114500.0,0.57008203]
[1754489328505,0.6895593,114510.0,114500.0,0.56555643]
[1754489328506,1.0503593,114510.0,114500.0,0.56555643]
[1754489328700,1.41163597,114510.0,114500.0,0.82663643]
[1754489328904,1.41163597,114510.0,114500.0,0.20231643]
[1754489329093,1.41163597,114510.0,114500.0,0.82663643]
[1754489329292,1.41163597,114510.0,114500.0,0.20231643]
[1754489329506,1.0503593,114510.0,114500.0,0.82663643]
[1754489329700,1.41163597,114510.0,114500.0,0.82663643]
[1754489330101,2.03595597,114510.0,114500.0,0.82663643]
[1754489330407,2.03695597,114510.0,114500.0,0.82663643]
[1754489330604,2.03695597,114510.0,114500.0,0.62432]
[1754489331304,2.03695597,114510.0,114500.0,0.77986857]
[1754489331503,2.03695597,114510.0,114500.0,0.15554857]
[1754489334505,0.1746756,114500.0,114490.0,1.15645457]
[1754489334710,1.32430227,114500.0,114490.0,1.23094457]
[1754489335110,1.32430227,114500.0,114490.0,1.27972457]
[1754489335809,1.32430227,114500.0,114490.0,1.23605197]
[1754489336806,1.32430227,114500.0,114490.0,1.04744857]
[1754489337009,1.32430227,114500.0,114490.0,0.8919]
[1754489339914,0.9630256,114500.0,114490.0,0.8919]
[1754489340114,1.32430227,114500.0,114490.0,0.8919]
[1754489340511,1.32430227,114500.0,114490.0,0.89198]
[1754489341015,1.32430227,114500.0,114490.0,1.04752857]
[1754489341311,1.68557894,114500.0,114490.0,0.15554857]
[1754489341711,0.9630256,114500.0,114490.0,0.15554857]
[1754489341921,0.5951308,114490.0,114480.0,0.97798646]
[1754489342215,1.31720747,114490.0,114480.0,0.79939646]
[1754489342514,1.94160747,114490.0,114480.0,0.64384789]
[1754489342712,1.88817741,114490.0,114480.0,0.64384789]
[1754489343618,1.88917741,114490.0,114480.0,0.64384789]
[1754489344418,1.88917741,114490.0,114480.0,0.01944789]
[1754489344619,1.94207216,114490.0,114480.0,0.01944789]
[1754489346812,0.386926,114480.0,114470.0,0.40936609]
[1754489347018,1.31668736,114480.0,114470.0,0.34014609]
[1754489348128,1.31668736,114480.0,114470.0,0.23077609]
[1754489348318,1.31668736,114480.0,114470.0,0.07522752]
[1754489348625,0.3417813,114470.0,114460.0,1.19645198]
[1754489348820,0.95590266,114470.0,114460.0,0.17500618]
[1754489349022,0.1747365,114460.0,114450.0,0.00545533]
[1754489349219,0.5951918,114450.0,114440.0,0.08966222]
[1754489349424,0.5951918,114450.0,114440.0,0.07015728]
[1754489349425,1.94165316,114450.0,114440.0,0.07015728]
[1754489349623,0.205377,114440.0,114430.0,0.31168643]
[1754489349927,1.31674836,114440.0,114430.0,0.15554857]
[1754489350222,1.78851636,114440.0,114430.0,0.15554857]
[1754489350427,2.64851636,114440.0,114430.0,0.15554857]
[1754489350622,2.34851636,114440.0,114430.0,0.15554857]
[1754489350923,0.5952224,114430.0,114420.0,0.40255651]
[1754489351124,1.94500376,114430.0,114420.0,0.35482001]
[1754489351324,1.94500376,114430.0,114420.0,0.1871]
[1754489351515,0.5942377,114420.0,114410.0,0.09724054]
[1754489351720,1.31577906,114420.0,114410.0,0.01951054]
[1754489352025,1.36048066,114420.0,114410.0,0.06937155]
[1754489352219,0.8686441,114420.0,114400.0,0.2185347]
[1754489352421,1.4447729,114410.0,114400.0,0.46405019]
[1754489352728,1.80551426,114410.0,114400.0,0.06979019]
[1754489352921,0.2520982,114400.0,114390.0,0.97659937]
[1754489353227,0.4548282,114400.0,114390.0,0.97659937]
[1754489353432,0.4548282,114400.0,114390.0,0.97964887]
[1754489353616,0.4548282,114400.0,114390.0,0.76110687]
[1754489354028,0.81556956,114400.0,114390.0,0.35354687]
[1754489354326,0.5942682,114400.0,114390.0,0.57515037]
[1754489354625,0.1738282,114400.0,114390.0,0.57515037]
[1754489354822,0.5250268,114410.0,114400.0,0.2525583]
[1754489355023,0.4307468,114410.0,114400.0,0.5690883]
[1754489355532,0.6389668,114410.0,114400.0,0.5690883]
[1754489355726,0.35166,114410.0,114400.0,0.5690883]
[1754489355924,0.5869144,114420.0,114410.0,0.28674]
[1754489356128,1.3541144,114420.0,114410.0,0.39426]
[1754489356326,1.7149144,114420.0,114410.0,0.3475]
[1754489356621,0.7263544,114420.0,114410.0,0.39426]
[1754489356827,1.71477576,114420.0,114410.0,0.3475]
[1754489357524,1.71577576,114420.0,114410.0,0.3475]
[1754489357921,0.95699036,114420.0,114410.0,0.9298728]
[1754489358129,0.1757976,114420.0,114410.0,1.9380141]
[1754489358837,0.1757976,114420.0,114410.0,1.57727274]
[1754489359331,0.001,114420.0,114410.0,2.2380141]
[1754489360036,0.001,114420.0,114410.0,1.9380141]
[1754489360541,0.001,114420.0,114410.0,1.57727274]
[1754489362029,0.001,114420.0,114410.0,1.9380141]
[1754489362332,0.2184708,114440.0,114430.0,0.3455423]
[1754489362532,0.2636308,114440.0,114430.0,1.1964423]
[1754489362732,0.9746034,114450.0,114440.0,0.522267]
[1754489363037,1.0433834,114450.0,114440.0,0.569027]
[1754489363831,1.0433834,114450.0,114440.0,0.57499987]
[1754489364339,0.9996734,114460.0,114450.0,0.5690117]
[1754489364537,0.9996734,114460.0,114450.0,1.1963317]
[1754489364932,0.9981735,114470.0,114460.0,0.5689965]
[1754489365132,0.9981735,114470.0,114460.0,0.63798138]
[1754489365533,1.0433335,114470.0,114460.0,0.63798138]
[1754489366938,1.40407486,114470.0,114460.0,0.59122138]
[1754489367141,1.40507486,114470.0,114460.0,0.59122138]
[1754489367842,1.40507486,114470.0,114460.0,0.59122128]
[1754489368848,1.40507486,114470.0,114460.0,0.41648488]
[1754489369843,1.40507486,114470.0,114460.0,0.32345488]
[1754489370541,1.0443335,114470.0,114460.0,0.32345488]
[1754489370742,1.40507486,114470.0,114460.0,0.32345488]
[1754489371239,1.40607486,114470.0,114460.0,0.06898488]
[1754489371443,0.2539364,114460.0,114450.0,0.62732]
[1754489371646,0.97231776,114460.0,114450.0,0.62732]
[1754489371942,0.97231776,114460.0,114450.0,0.73166]
[1754489372337,0.97231776,114460.0,114450.0,0.62732]
[1754489372536,1.33311776,114460.0,114450.0,0.62732]
[1754489372739,0.6115917,114450.0,114440.0,0.63197287]
[1754489372940,1.33313306,114450.0,114440.0,0.63197287]
[1754489373139,1.33313306,114450.0,114440.0,0.88809287]
[1754489373442,1.33313306,114450.0,114440.0,0.98496287]
[1754489373645,1.33313306,114450.0,114440.0,0.70901287]
[1754489373948,0.611607,114440.0,114430.0,0.01965924]
[1754489374136,1.33314836,114440.0,114430.0,0.64549924]
[1754489374539,0.972407,114440.0,114430.0,0.64549924]
[1754489374831,1.33214836,114440.0,114430.0,0.62584]
[1754489375036,0.6116222,114430.0,114420.0,0.63196536]
[1754489375236,0.6116222,114430.0,114410.0,0.19879994]
[1754489375237,0.6116375,114420.0,114410.0,0.19879994]
[1754489375442,0.97237886,114420.0,114410.0,0.99949274]
[1754489375646,0.97237886,114420.0,114410.0,1.00555023]
[1754489375842,0.6116375,114420.0,114410.0,1.00555023]
[1754489376047,0.3995875,114420.0,114410.0,1.05404023]
[1754489376238,0.3995875,114420.0,114410.0,1.41484023]
[1754489376849,0.6116375,114420.0,114410.0,1.41484023]